Workbook

Sheet RepBuilding (hidden)
A1: Dwelling features & interventions | C1: num of dwellings | D1: number of floor | E1: Country | F1: City | G1: building Type | H1: floor position | I1: Year | J1: Plant Area | K1: Floor Area | L1: Total Floor Area | M1: height | N1: S disp/V | O1: Wall thermal transmittance [W/(m2K) | P1: Roof thermal transmittance [W/(m2K) | Q1: Floor thermal transmittance [W/(m2K)
B2: dwelling #1 | C2: 1 | D2: 1 | E2: Italy | F2: Agrigento | G2: apartment | H2: mid | I2: <1900 | J2: 100 | K2: 100 | L2: 100 | M2: 3,8 | N2: ,35 | O2: 1,48 | P2: 1,8 | Q2: 2,04
C5: current | E5: planned
B6: Heating System | C6: type | D6: efficiency | E6: type | F6: efficiency | H6: cost
B7: heating means | C7: 1-Type B open chamber | D7: 0.76 | E7: pellet stove | F7: 0.88 | H7: 900
B8: emitters | C8: 1- Radiators | D8: 0.94 | E8: 1- Radiators | F8: 0.94 | H8: 0
B9: solar integration | C9: no | D9: - | E9: no | F9: - | H9: 0
B11: Domestic Hot Water
B12: DHW heating means | C12: same as heating | D12: 0.76 | E12: same as heating | F12: 0.88 | H12: 0
B13: solar integration | C13: no | D13: - | E13: no | F13: - | H13: 0
C15: type | D15: U | E15: type | F15: U
B16: Windows | C16: single glazed | D16: 4,9 | E16: single glazed | F16: 4,9 | H16: 0
B18: Envelope Insulation | C18: thickness | D18: l | E18: thickness | F18: l
B19: Wall | C19: - | D19: - | E19: - | F19: - | H19: 0
B20: Roof | C20: - | D20: - | E20: - | F20: - | H20: 0
B21: Floor | C21: - | D21: - | E21: - | F21: - | H21: 0
H23: 900 | I23: total cost
B26: Economic performance | C26: Costs | D26: Investment | E26: NPV | F26: NPV/m2 | G26: IIR | H26: IRR-Drate | I26: Drate | J26: PI | K26: DPBP
C27: 900, | D27: 900, | E27: 262,1 | F27: 2,62 | G27: 11,4 | H27: 3,4 | I27: 8, | J27: 1,29 | K27: 13,1
B30: Energy performance | C30: Fuel Energy consumption, kW | D30: Electric Energy consumption, kW | E30: Fuel Energy Bill, € | F30: Electric Energy Bill, € | G30: Energy consumption, kW | H30: Energy Bill, €
B31: current | C31: 4986,6 | D31: ,0 | E31: 512,9 | F31: ,0 | G31: 4986,6 | H31: 512,9
B32: planned | C32: 4306,6 | D32: ,0 | E32: 363,8 | F32: ,0 | G32: 4306,6 | H32: 363,8
B33: savings | C33: 680,0 | D33: ,0 | E33: 149,1 | F33: ,0 | G33: 680,0 | H33: 149,1
C36: Heating Energy losses, kW | D36: DHW Energy losses, kW | E36: Energy losses, kW
B37: current | C37: 1899,9 | D37: 1526,4 | E37: 3426,4
B38: planned | C38: 1899,9 | D38: 1526,4 | E38: 3426,4
B39: savings | C39: ,0 | D39: ,0 | E39: ,0
B41: Non Energy Benefits | C41: Weights | D41: Values % | E41: Ratings %
B42: Relevance of decreased Energy expenses | C42: 1,0 | D42: 50,00 | E42: 7,14
B43: Market pays for Efficient buildings | C43: 1,0 | D43: 50,00 | E43: 7,14
B44: Mass media promote efficient buildings | C44: 1,0 | D44: 50,00 | E44: 7,14
B45: Relevance of fast increase of Energy price | C45: 1,0 | D45: 50,00 | E45: 7,14
B46: Penalties/Restrictions on non efficient buildings | C46: 1,0 | D46: 50,00 | E46: 7,14
B47: Acquisition of passive house standard | C47: 1,0 | D47: 50,00 | E47: 7,14
B48: Relevance of increased comfort | C48: 1,0 | D48: 50,00 | E48: 7,14
E49: 50,00 % | F49: € 450,00

Sheet City Climate
A1: Country | B1: City | C1: HDD | D1: zone | E1: heating on/off | H1: average daily Solar rad [MJ/m^2] South vert. Wall | I1: January | J1: February | K1: March | L1: April | M1: May | N1: June | O1: July | P1: August | Q1: September | R1: October | S1: November | T1: December
A2: Italy | B2: Agrigento | C2: 729 | D2: B | E2: 01.12/31.03 | I2: 13.8 | J2: 15.4 | K2: 14.4 | L2: 12.2 | M2: 10.2 | N2: 9.2 | O2: 9.7 | P2: 12.3 | Q2: 15.3 | R2: 16.4 | S2: 15.3 | T2: 13.7
A3: Italy | B3: Alessandria | C3: 2559 | D3: E | E3: 15.10/15.04 | I3: 8.4 | J3: 10.2 | K3: 11.1 | L3: 10.3 | M3: 9.3 | N3: 9.1 | O3: 10.2 | P3: 10.4 | Q3: 11 | R3: 10.2 | S3: 8.6 | T3: 7.8
A4: Italy | B4: Ancona | C4: 1688 | D4: D | E4: 01.11/15.04 | I4: 6.6 | J4: 9.7 | K4: 11.3 | L4: 11.7 | M4: 10.8 | N4: 9.9 | O4: 11 | P4: 12.2 | Q4: 13.2 | R4: 13 | S4: 8.6 | T4: 6.7
A5: Italy | B5: Aosta | C5: 2850 | D5: E | E5: 15.10/15.04 | I5: 10.3 | J5: 11.6 | K5: 12.1 | L5: 10.4 | M5: 9.3 | N5: 9.1 | O5: 9.8 | P5: 10.3 | Q5: 11 | R5: 10.8 | S5: 11.2 | T5: 10.2
A6: Italy | B6: Arezzo | C6: 2104 | D6: E | E6: 15.10/15.04 | I6: 8.6 | J6: 9.7 | K6: 10.2 | L6: 9.5 | M6: 9.3 | N6: 9.4 | O6: 10.1 | P6: 10.7 | Q6: 12.1 | R6: 11.1 | S6: 9.1 | T6: 6.7
A7: Italy | B7: Ascoli Piceno | C7: 1698 | D7: D | E7: 01.11/15.04 | I7: 8.8 | J7: 10.4 | K7: 11.6 | L7: 10.8 | M7: 9.8 | N7: 9.7 | O7: 10.7 | P7: 12.2 | Q7: 13.2 | R7: 12.5 | S7: 10 | T7: 8.1
A8: Italy | B8: Asti | C8: 2617 | D8: E | E8: 15.10/15.04 | I8: 9.4 | J8: 10.9 | K8: 11.6 | L8: 10.6 | M8: 9.3 | N8: 9.2 | O8: 10.2 | P8: 10.2 | Q8: 10.8 | R8: 11.2 | S8: 9.4 | T8: 9.7
A9: Italy | B9: Avellino | C9: 1742 | D9: D | E9: 01.11/15.04 | I9: 8 | J9: 10.1 | K9: 11.1 | L9: 10.9 | M9: 9.9 | N9: 9.5 | O9: 10.4 | P9: 12.3 | Q9: 13.9 | R9: 14.2 | S9: 10.6 | T9: 7.6
A10: Italy | B10: Bari | C10: 1185 | D10: C | E10: 15.11/31.03 | I10: 10.9 | J10: 13.3 | K10: 13.2 | L10: 12.5 | M10: 10.9 | N10: 10.1 | O10: 10.8 | P10: 13 | Q10: 15.2 | R10: 16.4 | S10: 13.1 | T10: 9.6
A11: Italy | B11: Belluno | C11: 3001 | D11: F | E11: 01.09/30.05 | I11: 7.8 | J11: 10.7 | K11: 11.9 | L11: 10.2 | M11: 9.8 | N11: 9.3 | O11: 10.3 | P11: 10.6 | Q11: 11.9 | R11: 11.8 | S11: 7.9 | T11: 7.5
A12: Italy | B12: Benevento | C12: 1316 | D12: C | E12: 15.11/31.03 | I12: 8.8 | J12: 10.7 | K12: 11.4 | L12: 10.4 | M12: 9.5 | N12: 9.5 | O12: 10.4 | P12: 12 | Q12: 12.7 | R12: 12.9 | S12: 9.7 | T12: 7.7
A13: Italy | B13: Bergamo | C13: 2533 | D13: E | E13: 15.10/15.04 | I13: 7.3 | J13: 9.3 | K13: 11 | L13: 10.3 | M13: 9.7 | N13: 9.3 | O13: 10.3 | P13: 11 | Q13: 11.9 | R13: 11.6 | S13: 7.4 | T13: 7.2
A14: Italy | B14: Bologna | C14: 2259 | D14: E | E14: 15.10/15.04 | I14: 7.4 | J14: 10.7 | K14: 11.6 | L14: 11.2 | M14: 10.2 | N14: 10 | O14: 11.1 | P14: 12 | Q14: 12.9 | R14: 12.4 | S14: 8.5 | T14: 7.2
A15: Italy | B15: Bolzano | C15: 2791 | D15: E | E15: 15.10/15.04 | I15: 8.5 | J15: 12.5 | K15: 13.1 | L15: 11.1 | M15: 10.3 | N15: 9.7 | O15: 10.6 | P15: 11 | Q15: 12.3 | R15: 12.3 | S15: 9 | T15: 7.7
A16: Italy | B16: Brescia | C16: 2410 | D16: E | E16: 15.10/15.04 | I16: 8.2 | J16: 11 | K16: 12.3 | L16: 10.6 | M16: 10.2 | N16: 9.9 | O16: 11 | P16: 11.8 | Q16: 12.6 | R16: 11.7 | S16: 9 | T16: 8.4
A17: Italy | B17: Brindisi | C17: 1083 | D17: C | E17: 15.11/31.03 | I17: 11.7 | J17: 11.6 | K17: 12.6 | L17: 11.7 | M17: 10.3 | N17: 9.8 | O17: 10.4 | P17: 12.3 | Q17: 14.4 | R17: 15.7 | S17: 12.5 | T17: 10
A18: Italy | B18: Cagliari | C18: 990 | D18: C | E18: 15.11/31.03 | I18: 11.5 | J18: 11.8 | K18: 12.5 | L18: 10.7 | M18: 9.6 | N18: 9.2 | O18: 10 | P18: 11.8 | Q18: 13.2 | R18: 13.7 | S18: 12.1 | T18: 10.4
A19: Italy | B19: Caltanissetta | C19: 1550 | D19: D | E19: 01.11/15.04 | I19: 14.5 | J19: 14.5 | K19: 13.6 | L19: 11.5 | M19: 10 | N19: 9.1 | O19: 9.6 | P19: 11.8 | Q19: 14.2 | R19: 15.2 | S19: 15.3 | T19: 13.3
A20: Italy | B20: Campobasso | C20: 2346 | D20: E | E20: 15.10/15.04 | I20: 10.1 | J20: 12.4 | K20: 12.2 | L20: 11.4 | M20: 10.4 | N20: 9.8 | O20: 10.5 | P20: 12.2 | Q20: 13.9 | R20: 14.5 | S20: 11.7 | T20: 9.6
A21: Italy | B21: Caserta | C21: 1013 | D21: C | E21: 15.11/31.03 | I21: 11.6 | J21: 12.5 | K21: 13.2 | L21: 11.7 | M21: 10.4 | N21: 10 | O21: 10.7 | P21: 12.5 | Q21: 14.5 | R21: 16 | S21: 12.7 | T21: 10.4
A22: Italy | B22: Catania | C22: 833 | D22: B | E22: 01.12/31.03 | I22: 14.5 | J22: 14.5 | K22: 13.5 | L22: 11.5 | M22: 10 | N22: 9.1 | O22: 9.7 | P22: 11.8 | Q22: 14.2 | R22: 15.1 | S22: 15.3 | T22: 13.3
A23: Italy | B23: Catanzaro | C23: 1328 | D23: C | E23: 15.11/31.03 | I23: 11.4 | J23: 14 | K23: 10.7 | L23: 10.9 | M23: 9.7 | N23: 9.4 | O23: 10 | P23: 12.2 | Q23: 12.4 | R23: 14 | S23: 11.4 | T23: 10.5
A24: Italy | B24: Chieti | C24: 1556 | D24: D | E24: 01.11/15.04 | I24: 10.1 | J24: 11.3 | K24: 12 | L24: 11.6 | M24: 10.6 | N24: 9.8 | O24: 10.7 | P24: 12.1 | Q24: 13.9 | R24: 14.7 | S24: 11 | T24: 8.7
A25: Italy | B25: Como | C25: 2228 | D25: E | E25: 15.10/15.04 | I25: 8.3 | J25: 9.1 | K25: 10.8 | L25: 10.3 | M25: 9.2 | N25: 9.3 | O25: 10.3 | P25: 10.6 | Q25: 10.9 | R25: 11.4 | S25: 8 | T25: 7.5
A26: Italy | B26: Cosenza | C26: 1317 | D26: C | E26: 15.11/31.03 | I26: 12.5 | J26: 15.4 | K26: 15.7 | L26: 12.6 | M26: 10.5 | N26: 9.8 | O26: 10.3 | P26: 12.7 | Q26: 15.4 | R26: 14.9 | S26: 15.2 | T26: 13.8
A27: Italy | B27: Cremona | C27: 2389 | D27: E | E27: 15.10/15.04 | I27: 6.3 | J27: 8.8 | K27: 11 | L27: 11 | M27: 10.1 | N27: 10.2 | O27: 11.1 | P27: 11.7 | Q27: 12 | R27: 10.1 | S27: 6.7 | T27: 5.3
A28: Italy | B28: Crotone | C28: 899 | D28: B | E28: 01.12/31.03 | I28: 11.7 | J28: 13.2 | K28: 12.5 | L28: 11.1 | M28: 9.9 | N28: 9.3 | O28: 9.9 | P28: 11.9 | Q28: 13.4 | R28: 14.8 | S28: 13.1 | T28: 10.3
A29: Italy | B29: Cuneo | C29: 3012 | D29: F | E29: 01.09/30.05 | I29: 10.2 | J29: 11.1 | K29: 10.8 | L29: 9.4 | M29: 8.3 | N29: 8.4 | O29: 9.4 | P29: 9.2 | Q29: 9.9 | R29: 10.3 | S29: 9.8 | T29: 9.9
A30: Italy | B30: Enna | C30: 2248 | D30: E | E30: 15.10/15.04 | I30: 14.2 | J30: 14.5 | K30: 13.7 | L30: 11.7 | M30: 10 | N30: 9.2 | O30: 9.7 | P30: 12 | Q30: 14.4 | R30: 15.4 | S30: 15.4 | T30: 13.1
A31: Italy | B31: Ferrara | C31: 2326 | D31: E | E31: 15.10/15.04 | I31: 7.8 | J31: 10.4 | K31: 10.1 | L31: 11.4 | M31: 10.3 | N31: 9.7 | O31: 10.6 | P31: 11.1 | Q31: 13.2 | R31: 14.1 | S31: 7 | T31: 5.4
A32: Italy | B32: Firenze | C32: 1821 | D32: D | E32: 01.11/15.04 | I32: 9.1 | J32: 10.9 | K32: 11.4 | L32: 11.1 | M32: 10.4 | N32: 10 | O32: 10.9 | P32: 12.1 | Q32: 13.6 | R32: 13.9 | S32: 9.8 | T32: 8.3
A33: Italy | B33: Foggia | C33: 1530 | D33: D | E33: 01.11/15.04 | I33: 10.7 | J33: 12.7 | K33: 12.7 | L33: 11.9 | M33: 10.5 | N33: 9.8 | O33: 10.5 | P33: 12.2 | Q33: 14.2 | R33: 15.3 | S33: 12.6 | T33: 9.9
A34: Italy | B34: Forlì | C34: 2087 | D34: D | E34: 01.11/15.04 | I34: 8.2 | J34: 10.7 | K34: 12.1 | L34: 11.5 | M34: 10.7 | N34: 10.4 | O34: 11.3 | P34: 12.6 | Q34: 14.1 | R34: 13 | S34: 8.7 | T34: 7.1
A35: Italy | B35: Frosinone | C35: 2196 | D35: E | E35: 15.10/15.04 | I35: 11 | J35: 11.8 | K35: 12.6 | L35: 10.7 | M35: 9.6 | N35: 9.6 | O35: 10.4 | P35: 11.8 | Q35: 13.7 | R35: 14 | S35: 12 | T35: 10.1
A36: Italy | B36: Genova | C36: 1435 | D36: D | E36: 01.11/15.04 | I36: 9.7 | J36: 11.3 | K36: 12.1 | L36: 10.9 | M36: 10.1 | N36: 9.7 | O36: 10.9 | P36: 11.7 | Q36: 12.9 | R36: 13.6 | S36: 9.6 | T36: 9.7
A37: Italy | B37: Gorizia | C37: 2333 | D37: E | E37: 15.10/15.04 | I37: 8.2 | J37: 9.7 | K37: 11.1 | L37: 10.7 | M37: 9.9 | N37: 9.6 | O37: 10.6 | P37: 11.8 | Q37: 12.5 | R37: 12 | S37: 9.2 | T37: 7.5
A38: Italy | B38: Grosseto | C38: 1550 | D38: D | E38: 01.11/15.04 | I38: 10.4 | J38: 11.4 | K38: 11.8 | L38: 11.4 | M38: 10.7 | N38: 10.1 | O38: 11 | P38: 12.6 | Q38: 13.9 | R38: 14.7 | S38: 10.9 | T38: 8.9
A39: Italy | B39: Imperia | C39: 1201 | D39: C | E39: 15.11/31.03 | I39: 11.3 | J39: 12.7 | K39: 12.9 | L39: 11.9 | M39: 10.5 | N39: 10.2 | O39: 11.2 | P39: 12.2 | Q39: 13.8 | R39: 15.2 | S39: 12.2 | T39: 11.3
A40: Italy | B40: Isernia | C40: 1866 | D40: D | E40: 01.11/15.04 | I40: 9.7 | J40: 11 | K40: 11.6 | L40: 10 | M40: 9.2 | N40: 9.3 | O40: 10.2 | P40: 11.5 | Q40: 12.8 | R40: 12.6 | S40: 10.5 | T40: 8.7
A41: Italy | B41: La Spezia | C41: 1413 | D41: D | E41: 01.11/15.04 | I41: 9.3 | J41: 11.8 | K41: 12.4 | L41: 11 | M41: 9.8 | N41: 9.9 | O41: 11 | P41: 12 | Q41: 13.3 | R41: 13 | S41: 9.5 | T41: 9
A42: Italy | B42: L'Aquila | C42: 2514 | D42: E | E42: 15.10/15.04 | I42: 10.3 | J42: 10.7 | K42: 10.9 | L42: 9.1 | M42: 9.2 | N42: 8.9 | O42: 10 | P42: 10.9 | Q42: 12.5 | R42: 12.6 | S42: 10.1 | T42: 8.8
A43: Italy | B43: Latina | C43: 1220 | D43: C | E43: 15.11/31.03 | I43: 11.5 | J43: 12.5 | K43: 13.4 | L43: 11.8 | M43: 10.5 | N43: 10.1 | O43: 10.8 | P43: 12.6 | Q43: 14.7 | R43: 15.8 | S43: 12.7 | T43: 10.3
A44: Italy | B44: Lecce | C44: 1153 | D44: C | E44: 15.11/31.03 | I44: 11.1 | J44: 12.4 | K44: 12 | L44: 11.2 | M44: 10.2 | N44: 9.6 | O44: 10.3 | P44: 12.2 | Q44: 13.9 | R44: 14.6 | S44: 11.2 | T44: 9.8
A45: Italy | B45: Lecco | C45: 2383 | D45: E | E45: 15.10/15.04 | I45: 8.6 | J45: 9.6 | K45: 11.2 | L45: 10.5 | M45: 9.4 | N45: 9.4 | O45: 10.3 | P45: 10.7 | Q45: 11.2 | R45: 11.7 | S45: 8.5 | T45: 7.8
A46: Italy | B46: Livorno | C46: 1408 | D46: D | E46: 01.11/15.04 | I46: 9.4 | J46: 11.2 | K46: 11.6 | L46: 11.4 | M46: 10.6 | N46: 10.1 | O46: 11 | P46: 12.3 | Q46: 13.9 | R46: 14.4 | S46: 10.1 | T46: 8.6
A47: Italy | B47: Lodi | C47: 2592 | D47: E | E47: 15.10/15.04 | I47: 5.8 | J47: 8.4 | K47: 10.8 | L47: 10.8 | M47: 10 | N47: 10 | O47: 10.9 | P47: 11.4 | Q47: 11.5 | R47: 9.8 | S47: 6.4 | T47: 5.2
A48: Italy | B48: Lucca | C48: 1715 | D48: D | E48: 01.11/15.04 | I48: 9.2 | J48: 10.4 | K48: 11.6 | L48: 10.7 | M48: 9.8 | N48: 9.6 | O48: 10.6 | P48: 11.5 | Q48: 13.1 | R48: 13.5 | S48: 9.4 | T48: 7.7
A49: Italy | B49: Macerata | C49: 2005 | D49: D | E49: 01.11/15.04 | I49: 9.4 | J49: 11.2 | K49: 11.6 | L49: 11.1 | M49: 10.6 | N49: 10 | O49: 10.7 | P49: 12 | Q49: 13.6 | R49: 13.8 | S49: 10.5 | T49: 8.5
A50: Italy | B50: Mantova | C50: 2388 | D50: E | E50: 15.10/15.04 | I50: 5.8 | J50: 8.3 | K50: 10.5 | L50: 10.6 | M50: 10 | N50: 10.1 | O50: 11 | P50: 11.5 | Q50: 11.4 | R50: 9.5 | S50: 6.4 | T50: 5.3
A51: Italy | B51: Massa | C51: 1525 | D51: D | E51: 01.11/15.04 | I51: 9.3 | J51: 11.3 | K51: 12.1 | L51: 10.9 | M51: 9.8 | N51: 9.8 | O51: 10.9 | P51: 11.8 | Q51: 13.2 | R51: 13.2 | S51: 9.5 | T51: 8.5
A52: Italy | B52: Matera | C52: 1776 | D52: D | E52: 01.11/15.04 | I52: 10 | J52: 12.3 | K52: 11.5 | L52: 11 | M52: 10 | N52: 9.5 | O52: 10.3 | P52: 12 | Q52: 13.8 | R52: 13.4 | S52: 10.5 | T52: 9.7
A53: Italy | B53: Messina | C53: 707 | D53: B | E53: 01.12/31.03 | I53: 10.8 | J53: 12.9 | K53: 12.9 | L53: 11.5 | M53: 9.9 | N53: 9.2 | O53: 9.7 | P53: 11.8 | Q53: 14 | R53: 14.2 | S53: 13.2 | T53: 10.3
A54: Italy | B54: Milano | C54: 2404 | D54: E | E54: 15.10/15.04 | I54: 6 | J54: 8.7 | K54: 11.2 | L54: 10.9 | M54: 10 | N54: 9.8 | O54: 10.8 | P54: 11.3 | Q54: 11.8 | R54: 10.3 | S54: 6.7 | T54: 5.4
A55: Italy | B55: Modena | C55: 2258 | D55: E | E55: 15.10/15.04 | I55: 7.1 | J55: 9 | K55: 11.3 | L55: 11.2 | M55: 10.5 | N55: 10.1 | O55: 10.9 | P55: 11.6 | Q55: 12.7 | R55: 12.7 | S55: 8.5 | T55: 7.3
A56: Italy | B56: Napoli | C56: 1034 | D56: C | E56: 15.11/31.03 | I56: 11.1 | J56: 12.2 | K56: 12.5 | L56: 11.4 | M56: 10.4 | N56: 9.8 | O56: 10.5 | P56: 12.3 | Q56: 14 | R56: 15.5 | S56: 11.9 | T56: 9.8
A57: Italy | B57: Novara | C57: 2463 | D57: E | E57: 15.10/15.04 | I57: 6.5 | J57: 9.6 | K57: 11.5 | L57: 11.1 | M57: 10 | N57: 9.9 | O57: 10.9 | P57: 11.4 | Q57: 12 | R57: 10 | S57: 7.6 | T57: 5.9
A58: Italy | B58: Nuoro | C58: 1602 | D58: D | E58: 01.11/15.04 | I58: 11.2 | J58: 11.9 | K58: 12.6 | L58: 11.2 | M58: 10.2 | N58: 9.6 | O58: 10.5 | P58: 12.2 | Q58: 14.1 | R58: 14.4 | S58: 11.7 | T58: 10
A59: Italy | B59: Oristano | C59: 1059 | D59: C | E59: 15.11/31.03 | I59: 11.4 | J59: 12.3 | K59: 12.6 | L59: 11 | M59: 10 | N59: 9.4 | O59: 10.3 | P59: 12.1 | Q59: 14 | R59: 14.6 | S59: 12 | T59: 10
A60: Italy | B60: Padova | C60: 2383 | D60: E | E60: 15.10/15.04 | I60: 6.9 | J60: 9.5 | K60: 10.5 | L60: 9.6 | M60: 9.5 | N60: 9.3 | O60: 10 | P60: 10.9 | Q60: 12.2 | R60: 12 | S60: 8.2 | T60: 8.1
A61: Italy | B61: Palermo | C61: 751 | D61: B | E61: 01.12/31.03 | I61: 11.9 | J61: 13.3 | K61: 13.4 | L61: 11.7 | M61: 10.1 | N61: 9.3 | O61: 9.8 | P61: 12 | Q61: 14.5 | R61: 15.2 | S61: 14.1 | T61: 11
A62: Italy | B62: Parma | C62: 2502 | D62: E | E62: 15.10/15.04 | I62: 7.1 | J62: 10.4 | K62: 12.8 | L62: 12 | M62: 10.5 | N62: 10.4 | O62: 11.4 | P62: 12.5 | Q62: 14.6 | R62: 12.7 | S62: 8.3 | T62: 6.3
A63: Italy | B63: Pavia | C63: 2623 | D63: E | E63: 15.10/15.04 | I63: 5.6 | J63: 8.2 | K63: 10.5 | L63: 10.7 | M63: 10 | N63: 10.2 | O63: 11 | P63: 11.5 | Q63: 11.4 | R63: 9.4 | S63: 6.2 | T63: 5
A64: Italy | B64: Perugia | C64: 2289 | D64: E | E64: 15.10/15.04 | I64: 9.3 | J64: 10 | K64: 11.3 | L64: 10.4 | M64: 10.1 | N64: 9.7 | O64: 10.7 | P64: 11.8 | Q64: 13.1 | R64: 14.4 | S64: 10.2 | T64: 7.8
A65: Italy | B65: Pesaro - Urbino | C65: 2083 | D65: D | E65: 01.11/15.04 | I65: 6 | J65: 8.8 | K65: 11.4 | L65: 11.2 | M65: 10.2 | N65: 9.7 | O65: 10.9 | P65: 12.2 | Q65: 12.9 | R65: 11.8 | S65: 8.4 | T65: 6.4
A66: Italy | B66: Pescara | C66: 1718 | D66: D | E66: 01.11/15.04 | I66: 9.4 | J66: 11 | K66: 11.7 | L66: 11.5 | M66: 10.5 | N66: 9.8 | O66: 10.7 | P66: 12 | Q66: 13.6 | R66: 14.2 | S66: 10.8 | T66: 8.3
A67: Italy | B67: Piacenza | C67: 2715 | D67: E | E67: 15.10/15.04 | I67: 7.5 | J67: 9.8 | K67: 11.9 | L67: 11.5 | M67: 10.4 | N67: 10.2 | O67: 11.2 | P67: 11.9 | Q67: 13 | R67: 11.3 | S67: 7.5 | T67: 5.7
A68: Italy | B68: Pisa | C68: 1694 | D68: D | E68: 01.11/15.04 | I68: 9.2 | J68: 11.1 | K68: 11.6 | L68: 11.4 | M68: 10.5 | N68: 10.1 | O68: 11 | P68: 12.3 | Q68: 13.9 | R68: 14.3 | S68: 9.9 | T68: 8.5
A69: Italy | B69: Pistoia | C69: 1885 | D69: D | E69: 01.11/15.04 | I69: 8.4 | J69: 9.9 | K69: 10.4 | L69: 9.5 | M69: 8.9 | N69: 8.8 | O69: 10.2 | P69: 11.1 | Q69: 12.1 | R69: 12.3 | S69: 9 | T69: 7.6
A70: Italy | B70: Pordenone | C70: 2459 | D70: E | E70: 15.10/15.04 | I70: 8.2 | J70: 10.7 | K70: 11.1 | L70: 9.9 | M70: 9.6 | N70: 9.5 | O70: 10.3 | P70: 11.5 | Q70: 12.4 | R70: 12.2 | S70: 7.6 | T70: 7.5
A71: Italy | B71: Potenza | C71: 2472 | D71: E | E71: 15.10/15.04 | I71: 9.2 | J71: 10.8 | K71: 11.4 | L71: 10.7 | M71: 9.7 | N71: 9.5 | O71: 10.2 | P71: 11.6 | Q71: 12.9 | R71: 13.2 | S71: 11.2 | T71: 8.9
A72: Italy | B72: Prato | C72: 1668 | D72: D | E72: 01.11/15.04 | I72: 8.6 | J72: 10.2 | K72: 10.7 | L72: 9.9 | M72: 9.2 | N72: 9.1 | O72: 10.3 | P72: 11.4 | Q72: 12.5 | R72: 12.8 | S72: 9.2 | T72: 7.8
A73: Italy | B73: Ragusa | C73: 1324 | D73: C | E73: 15.11/31.03 | I73: 14 | J73: 14 | K73: 14.4 | L73: 11.8 | M73: 9.8 | N73: 8.9 | O73: 9.4 | P73: 11.5 | Q73: 14.4 | R73: 17.2 | S73: 17 | T73: 11.7
A74: Italy | B74: Ravenna | C74: 2227 | D74: E | E74: 15.10/15.04 | I74: 7.1 | J74: 9.1 | K74: 12.2 | L74: 11.5 | M74: 10.2 | N74: 10.1 | O74: 11 | P74: 11.9 | Q74: 13 | R74: 11.7 | S74: 8 | T74: 5.9
A75: Italy | B75: Reggio Calabria | C75: 772 | D75: B | E75: 01.12/31.03 | I75: 11.4 | J75: 14 | K75: 12.4 | L75: 11.6 | M75: 9.9 | N75: 9.3 | O75: 9.7 | P75: 11.9 | Q75: 14.1 | R75: 14.1 | S75: 13.4 | T75: 10.7
A76: Italy | B76: Reggio Emilia | C76: 2560 | D76: E | E76: 15.10/15.04 | I76: 7.1 | J76: 9.4 | K76: 11.7 | L76: 11.4 | M76: 10.5 | N76: 10.2 | O76: 11.1 | P76: 11.9 | Q76: 13.2 | R76: 12.7 | S76: 8.5 | T76: 7
A77: Italy | B77: Rieti | C77: 2324 | D77: E | E77: 15.10/15.04 | I77: 10.2 | J77: 10.6 | K77: 10.6 | L77: 9 | M77: 9.2 | N77: 8.8 | O77: 9.9 | P77: 10.8 | Q77: 12.4 | R77: 12.7 | S77: 9.8 | T77: 8.5
A78: Italy | B78: Rimini | C78: 2139 | D78: E | E78: 15.10/15.04 | I78: 7.5 | J78: 10.4 | K78: 12.2 | L78: 10.9 | M78: 10.4 | N78: 10.1 | O78: 11 | P78: 12.3 | Q78: 13.6 | R78: 13 | S78: 9.2 | T78: 7.1
A79: Italy | B79: Roma | C79: 1415 | D79: D | E79: 01.11/15.04 | I79: 10.6 | J79: 11.9 | K79: 12.6 | L79: 11.6 | M79: 10.6 | N79: 9.9 | O79: 10.8 | P79: 12.4 | Q79: 14.2 | R79: 15.1 | S79: 11.8 | T79: 9.3
A80: Italy | B80: Rovigo | C80: 2466 | D80: E | E80: 15.10/15.04 | I80: 6.2 | J80: 10 | K80: 11.6 | L80: 10.7 | M80: 10.6 | N80: 10.5 | O80: 11.3 | P80: 12.7 | Q80: 12.8 | R80: 11.3 | S80: 7.5 | T80: 7
A81: Italy | B81: Salerno | C81: 994 | D81: C | E81: 15.11/31.03 | I81: 9.3 | J81: 9.7 | K81: 10.2 | L81: 9.4 | M81: 9 | N81: 9 | O81: 9.7 | P81: 10.8 | Q81: 11.8 | R81: 12.7 | S81: 10.3 | T81: 8.4
A82: Italy | B82: Sassari | C82: 1185 | D82: C | E82: 15.11/31.03 | I82: 11.1 | J82: 12.4 | K82: 12.8 | L82: 11.4 | M82: 10.5 | N82: 9.8 | O82: 10.6 | P82: 12.3 | Q82: 14.7 | R82: 15.3 | S82: 11.7 | T82: 9.7
A83: Italy | B83: Savona | C83: 1481 | D83: D | E83: 01.11/15.04 | I83: 10 | J83: 11.4 | K83: 12 | L83: 10.7 | M83: 9.6 | N83: 9.3 | O83: 10.5 | P83: 11 | Q83: 12.6 | R83: 13.1 | S83: 10.6 | T83: 9.7
A84: Italy | B84: Siena | C84: 1943 | D84: D | E84: 01.11/15.04 | I84: 9.1 | J84: 10.2 | K84: 10.7 | L84: 10.1 | M84: 9.8 | N84: 9.6 | O84: 10.4 | P84: 11.4 | Q84: 12.7 | R84: 12.2 | S84: 9.7 | T84: 7.4
A85: Italy | B85: Siracusa | C85: 799 | D85: B | E85: 01.12/31.03 | I85: 13.9 | J85: 14.6 | K85: 14.4 | L85: 11.9 | M85: 10 | N85: 9 | O85: 9.5 | P85: 11.8 | Q85: 14.8 | R85: 16.9 | S85: 16.3 | T85: 12.5
A86: Italy | B86: Sondrio | C86: 2755 | D86: E | E86: 15.10/15.04 | I86: 11.5 | J86: 14 | K86: 15.1 | L86: 12 | M86: 10.7 | N86: 10 | O86: 10.4 | P86: 11.9 | Q86: 14.1 | R86: 13.8 | S86: 13.5 | T86: 10.3
A87: Italy | B87: Taranto | C87: 1071 | D87: C | E87: 15.11/31.03 | I87: 11.2 | J87: 12.5 | K87: 12.7 | L87: 11.6 | M87: 10.3 | N87: 9.8 | O87: 10.5 | P87: 12.3 | Q87: 14.3 | R87: 15 | S87: 12.5 | T87: 10.2
A88: Italy | B88: Teramo | C88: 1834 | D88: D | E88: 01.11/15.04 | I88: 9.2 | J88: 10.8 | K88: 11.4 | L88: 10.9 | M88: 10 | N88: 9.6 | O88: 10.6 | P88: 12.2 | Q88: 12.9 | R88: 13.1 | S88: 10.6 | T88: 8.6
A89: Italy | B89: Terni | C89: 1650 | D89: D | E89: 01.11/15.04 | I89: 9.5 | J89: 10.2 | K89: 11.4 | L89: 9.5 | M89: 9.4 | N89: 9.1 | O89: 10.2 | P89: 11.3 | Q89: 13 | R89: 13 | S89: 10.6 | T89: 8
A90: Italy | B90: Torino | C90: 2617 | D90: E | E90: 15.10/15.04 | I90: 9 | J90: 10.8 | K90: 11.9 | L90: 11.2 | M90: 9.8 | N90: 9.5 | O90: 10.6 | P90: 10.7 | Q90: 11.2 | R90: 11.6 | S90: 9.2 | T90: 9.6
A91: Italy | B91: Trapani | C91: 810 | D91: B | E91: 01.12/31.03 | I91: 13.6 | J91: 13.9 | K91: 14.2 | L91: 12.1 | M91: 10.3 | N91: 9.3 | O91: 9.9 | P91: 12.3 | Q91: 15.2 | R91: 16.6 | S91: 15.3 | T91: 12.1
A92: Italy | B92: Trento | C92: 2567 | D92: F | E92: 01.09/30.05 | I92: 9.6 | J92: 12.6 | K92: 14.3 | L92: 11.9 | M92: 10.5 | N92: 10.2 | O92: 11.2 | P92: 11.9 | Q92: 13.6 | R92: 12.4 | S92: 9.8 | T92: 8.2
A93: Italy | B93: Treviso | C93: 2378 | D93: E | E93: 15.10/15.04 | I93: 8.1 | J93: 11.5 | K93: 12 | L93: 10.5 | M93: 10.2 | N93: 10.3 | O93: 11 | P93: 12.3 | Q93: 13.1 | R93: 12.4 | S93: 8 | T93: 7.5
A94: Italy | B94: Trieste | C94: 2102 | D94: E | E94: 15.10/15.04 | I94: 7.3 | J94: 9.8 | K94: 10.7 | L94: 10.3 | M94: 10 | N94: 9.6 | O94: 10.7 | P94: 11.7 | Q94: 12.7 | R94: 12.4 | S94: 8.5 | T94: 7.2
A95: Italy | B95: Udine | C95: 2323 | D95: E | E95: 15.10/15.04 | I95: 8 | J95: 9.6 | K95: 10.6 | L95: 10.2 | M95: 9.7 | N95: 9.2 | O95: 10.3 | P95: 11.2 | Q95: 12.1 | R95: 12.4 | S95: 8.4 | T95: 7.9
A96: Italy | B96: Varese | C96: 2652 | D96: E | E96: 15.10/15.04 | I96: 9.4 | J96: 10.2 | K96: 11.1 | L96: 10.2 | M96: 9.6 | N96: 9.3 | O96: 10.2 | P96: 10.7 | Q96: 11.6 | R96: 11.4 | S96: 10 | T96: 9.8
A97: Italy | B97: Venezia | C97: 2345 | D97: E | E97: 15.10/15.04 | I97: 7.9 | J97: 11.6 | K97: 12.4 | L97: 11.2 | M97: 10.8 | N97: 10.8 | O97: 11.8 | P97: 12.8 | Q97: 13.7 | R97: 12.7 | S97: 9 | T97: 7.8
A98: Italy | B98: Verbania | C98: 2426 | D98: E | E98: 15.10/15.04 | I98: 10.2 | J98: 10.4 | K98: 11.2 | L98: 11.3 | M98: 9.3 | N98: 9.8 | O98: 10.7 | P98: 10.8 | Q98: 12.3 | R98: 11.7 | S98: 10.9 | T98: 9.9
A99: Italy | B99: Vercelli | C99: 2751 | D99: E | E99: 15.10/15.04 | I99: 6.9 | J99: 9.5 | K99: 11.4 | L99: 11 | M99: 10 | N99: 9.7 | O99: 10.9 | P99: 11.4 | Q99: 11.9 | R99: 10.1 | S99: 7.6 | T99: 6
A100: Italy | B100: Verona | C100: 2468 | D100: E | E100: 15.10/15.04 | I100: 6.9 | J100: 9.5 | K100: 10.5 | L100: 9.6 | M100: 9.5 | N100: 9.3 | O100: 10 | P100: 10.9 | Q100: 12.1 | R100: 11.9 | S100: 8.1 | T100: 8
A101: Italy | B101: Vicenza | C101: 2371 | D101: E | E101: 15.10/15.04 | I101: 8.5 | J101: 10.4 | K101: 11.5 | L101: 10.1 | M101: 9.8 | N101: 9.5 | O101: 10.2 | P101: 11.4 | Q101: 12.5 | R101: 12 | S101: 9.6 | T101: 9
A102: Italy | B102: Viterbo | C102: 1989 | D102: D | E102: 01.11/15.04 | I102: 9.9 | J102: 10.9 | K102: 11.8 | L102: 10 | M102: 9.8 | N102: 9.4 | O102: 10.3 | P102: 11.6 | Q102: 13.5 | R102: 13.9 | S102: 11.3 | T102: 8.7
A103: Lithuania | B103: Kaunas | C103: 729 | D103: B | E103: 01.12/31.03 | I103: 13.8 | J103: 15.4 | K103: 14.4 | L103: 12.2 | M103: 10.2 | N103: 9.2 | O103: 9.7 | P103: 12.3 | Q103: 15.3 | R103: 16.4 | S103: 15.3 | T103: 13.7
A104: Lithuania | B104: Klaipėda | C104: 2559 | D104: E | E104: 15.10/15.04 | I104: 8.4 | J104: 10.2 | K104: 11.1 | L104: 10.3 | M104: 9.3 | N104: 9.1 | O104: 10.2 | P104: 10.4 | Q104: 11 | R104: 10.2 | S104: 8.6 | T104: 7.8
A105: Lithuania | B105: Vilnius | C105: 1688 | D105: D | E105: 01.11/15.04 | I105: 6.6 | J105: 9.7 | K105: 11.3 | L105: 11.7 | M105: 10.8 | N105: 9.9 | O105: 11 | P105: 12.2 | Q105: 13.2 | R105: 13 | S105: 8.6 | T105: 6.7
A106: Spain | B106: Barcellona | C106: 729 | D106: B | E106: 01.12/31.03 | I106: 13.8 | J106: 15.4 | K106: 14.4 | L106: 12.2 | M106: 10.2 | N106: 9.2 | O106: 9.7 | P106: 12.3 | Q106: 15.3 | R106: 16.4 | S106: 15.3 | T106: 13.7
A107: Spain | B107: Madrid | C107: 2559 | D107: E | E107: 15.10/15.04 | I107: 8.4 | J107: 10.2 | K107: 11.1 | L107: 10.3 | M107: 9.3 | N107: 9.1 | O107: 10.2 | P107: 10.4 | Q107: 11 | R107: 10.2 | S107: 8.6 | T107: 7.8
A108: Spain | B108: Malaga | C108: 1688 | D108: D | E108: 01.11/15.04 | I108: 6.6 | J108: 9.7 | K108: 11.3 | L108: 11.7 | M108: 10.8 | N108: 9.9 | O108: 11 | P108: 12.2 | Q108: 13.2 | R108: 13 | S108: 8.6 | T108: 6.7
A109: Spain | B109: Valencia | C109: 2850 | D109: E | E109: 15.10/15.04 | I109: 10.3 | J109: 11.6 | K109: 12.1 | L109: 10.4 | M109: 9.3 | N109: 9.1 | O109: 9.8 | P109: 10.3 | Q109: 11 | R109: 10.8 | S109: 11.2 | T109: 10.2
A110: Germany | B110: Norderney | C110: 2921 | E110: 01.09/31.05 | I110: 3.8016 | J110: 7.4304 | K110: 8.8128 | L110: 11.5776 | M110: 11.7504 | N110: 10.2816 | O110: 10.6272 | P110: 10.8864 | Q110: 9.504 | R110: 7.4304 | S110: 4.8384 | T110: 2.3328
A111: Germany | B111: Hamburg | C111: 3172 | E111: 01.09/05.06 | I111: 3.456 | J111: 6.5664 | K111: 7.344 | L111: 9.936 | M111: 10.6272 | N111: 9.072 | O111: 9.7632 | P111: 10.1088 | Q111: 8.5536 | R111: 6.9984 | S111: 4.5792 | T111: 2.3328
A112: Germany | B112: Rostock | C112: 3193 | E112: 01.09/03.06 | I112: 2.5056 | J112: 5.8752 | K112: 8.4672 | L112: 11.4048 | M112: 12.3552 | N112: 10.8864 | O112: 11.4912 | P112: 11.664 | Q112: 10.2816 | R112: 7.5168 | S112: 4.4928 | T112: 2.4192
A113: Germany | B113: Potsdam | C113: 3222 | E113: 01.09/22.05 | I113: 3.5424 | J113: 6.912 | K113: 8.208 | L113: 9.936 | M113: 10.5408 | N113: 9.3312 | O113: 10.368 | P113: 10.9728 | Q113: 9.504 | R113: 7.776 | S113: 4.5792 | T113: 2.592
A114: Germany | B114: Braunschweig | C114: 3150 | E114: 01.09/24.05 | I114: 3.9744 | J114: 7.0848 | K114: 8.0352 | L114: 10.0224 | M114: 10.8 | N114: 9.5904 | O114: 10.1952 | P114: 10.5408 | Q114: 8.9856 | R114: 7.5168 | S114: 4.9248 | T114: 2.592
A115: Germany | B115: Erfurt | C115: 3466 | E115: 01.09/07.06 | I115: 4.32 | J115: 6.912 | K115: 8.2944 | L115: 9.504 | M115: 9.936 | N115: 9.1584 | O115: 9.7632 | P115: 9.936 | Q115: 8.5536 | R115: 7.344 | S115: 4.32 | T115: 2.7648
A116: Germany | B116: Münster | C116: 3100 | E116: 01.09/29.05 | I116: 3.6288 | J116: 6.912 | K116: 7.1712 | L116: 9.4176 | M116: 9.5904 | N116: 8.64 | O116: 9.3312 | P116: 9.504 | Q116: 8.208 | R116: 7.344 | S116: 4.4928 | T116: 2.2464
A117: Germany | B117: Trier | C117: 3047 | E117: 01.09/26.05 | I117: 3.5424 | J117: 7.1712 | K117: 8.5536 | L117: 9.936 | M117: 9.936 | N117: 9.3312 | O117: 10.1088 | P117: 10.4544 | Q117: 9.5904 | R117: 6.912 | S117: 4.2336 | T117: 2.6784
A118: Germany | B118: Leipzig | C118: 3160 | E118: 01.09/21.05 | I118: 5.9616 | J118: 9.4176 | K118: 9.3312 | L118: 9.936 | M118: 10.4544 | N118: 9.2448 | O118: 9.8496 | P118: 11.1456 | Q118: 9.7632 | R118: 9.072 | S118: 5.7888 | T118: 4.2336
A119: Germany | B119: Hof | C119: 3954 | E119: 01.09/26.06 | I119: 6.2208 | J119: 9.1584 | K119: 9.7632 | L119: 9.8496 | M119: 9.1584 | N119: 7.9488 | O119: 8.7264 | P119: 9.504 | Q119: 9.504 | R119: 10.0224 | S119: 6.2208 | T119: 4.1472
A120: Germany | B120: Würzburg | C120: 3112 | E120: 01.09/19.05 | I120: 4.0608 | J120: 7.8624 | K120: 8.8128 | L120: 10.1088 | M120: 10.1952 | N120: 9.504 | O120: 10.2816 | P120: 10.4544 | Q120: 10.368 | R120: 7.9488 | S120: 5.0112 | T120: 3.1104
A121: Germany | B121: Saarbrücken | C121: 3147 | E121: 01.09/29.05 | I121: 3.8016 | J121: 7.6896 | K121: 8.208 | L121: 9.8496 | M121: 9.936 | N121: 9.2448 | O121: 10.1088 | P121: 10.2816 | Q121: 10.1088 | R121: 7.6032 | S121: 5.0976 | T121: 2.9376
A122: Germany | B122: Konstanz | C122: 3053 | E122: 01.09./15.05 | I122: 4.752 | J122: 7.776 | K122: 9.1584 | L122: 9.4176 | M122: 9.4176 | N122: 9.5904 | O122: 10.1952 | P122: 11.1456 | Q122: 10.9728 | R122: 8.8992 | S122: 6.3936 | T122: 4.4928
A123: Germany | B123: München | C123: 3275 | E123: 01.09/22.05 | I123: 5.0112 | J123: 8.64 | K123: 9.5904 | L123: 10.1088 | M123: 10.0224 | N123: 9.3312 | O123: 10.0224 | P123: 10.7136 | Q123: 10.7136 | R123: 9.2448 | S123: 5.8752 | T123: 3.9744
A124: Germany | B124: Garmisch-Partenkirchen | C124: 3773 | E124: 01.09./20.06 | I124: 9.072 | J124: 10.9728 | K124: 11.1456 | L124: 10.368 | M124: 9.5904 | N124: 9.072 | O124: 9.936 | P124: 10.6272 | Q124: 11.232 | R124: 11.4912 | S124: 9.1584 | T124: 7.6896

Sheet Thermal Data
A1: country | B1: building type | C1: age | D1: Wall thermal transmittance [W/(m2K) | E1: Roof thermal transmittance [W/(m2K) | F1: Floor thermal transmittance [W/(m2K) | G1: S disp/V | H1: Windows thermal transmittance [W/(m2K) | I1: Swin/Sfloor | J1: height
A2: Italy | B2: apartment | C2: <1900 | D2: 1.48 | E2: 1.8 | F2: 2.04 | G2: 0.35 | H2: 4.9 | I2: 0.08 | J2: 3.8
A3: Italy | B3: apartment | C3: 1901-1920 | D3: 1.48 | E3: 1.8 | F3: 2.04 | G3: 0.47 | H3: 4.9 | I3: 0.08 | J3: 3.8
A4: Italy | B4: apartment | C4: 1921-1945 | D4: 1.15 | E4: 1.8 | F4: 1.81 | G4: 0.46 | H4: 4.9 | I4: 0.09 | J4: 3.5
A5: Italy | B5: apartment | C5: 1946-1960 | D5: 1.76 | E5: 1.85 | F5: 1.3 | G5: 0.46 | H5: 4.9 | I5: 0.1 | J5: 3.2
A6: Italy | B6: apartment | C6: 1961-1975 | D6: 1.76 | E6: 1.85 | F6: 1.3 | G6: 0.46 | H6: 5.7 | I6: 0.1 | J6: 3
A7: Italy | B7: apartment | C7: 1976-1990 | D7: 0.8 | E7: 1.01 | F7: 0.98 | G7: 0.37 | H7: 3.7 | I7: 0.1 | J7: 2.7
A8: Italy | B8: apartment | C8: 1991-2005 | D8: 0.61 | E8: 0.7 | F8: 0.77 | G8: 0.43 | H8: 3.7 | I8: 0.125 | J8: 3
A9: Italy | B9: apartment | C9: >2005 | D9: 0.34 | E9: 0.3 | F9: 0.33 | G9: 0.4 | H9: 2.4 | I9: 0.125 | J9: 3
A10: Italy | B10: multistorey | C10: <1900 | D10: 1.48 | E10: 1.8 | F10: 2.04 | G10: 0.77 | H10: 4.9 | I10: 0.08 | J10: 3.8
A11: Italy | B11: multistorey | C11: 1901-1920 | D11: 1.48 | E11: 1.8 | F11: 2.04 | G11: 0.82 | H11: 4.9 | I11: 0.08 | J11: 3.8
A12: Italy | B12: multistorey | C12: 1921-1945 | D12: 1.15 | E12: 1.8 | F12: 1.81 | G12: 0.81 | H12: 4.9 | I12: 0.09 | J12: 3.5
A13: Italy | B13: multistorey | C13: 1946-1960 | D13: 1.76 | E13: 1.85 | F13: 1.3 | G13: 0.75 | H13: 4.9 | I13: 0.1 | J13: 3.2
A14: Italy | B14: multistorey | C14: 1961-1975 | D14: 1.76 | E14: 1.85 | F14: 1.3 | G14: 0.73 | H14: 5.7 | I14: 0.1 | J14: 3
A15: Italy | B15: multistorey | C15: 1976-1990 | D15: 0.8 | E15: 1.01 | F15: 0.98 | G15: 0.72 | H15: 3.7 | I15: 0.1 | J15: 2.7
A16: Italy | B16: multistorey | C16: 1991-2005 | D16: 0.61 | E16: 0.7 | F16: 0.77 | G16: 0.73 | H16: 3.7 | I16: 0.125 | J16: 3
A17: Italy | B17: multistorey | C17: >2005 | D17: 0.34 | E17: 0.3 | F17: 0.33 | G17: 0.72 | H17: 2.4 | I17: 0.125 | J17: 3
A18: Italy | B18: detached house | C18: <1900 | D18: 1.48 | E18: 1.8 | F18: 2.04 | G18: 0.77 | H18: 4.9 | I18: 0.08 | J18: 3.8
A19: Italy | B19: detached house | C19: 1901-1920 | D19: 1.48 | E19: 1.8 | F19: 2.04 | G19: 0.82 | H19: 4.9 | I19: 0.08 | J19: 3.8
A20: Italy | B20: detached house | C20: 1921-1945 | D20: 1.15 | E20: 1.8 | F20: 1.81 | G20: 0.81 | H20: 4.9 | I20: 0.09 | J20: 3.5
A21: Italy | B21: detached house | C21: 1946-1960 | D21: 1.76 | E21: 1.85 | F21: 1.3 | G21: 0.75 | H21: 4.9 | I21: 0.9 | J21: 3.2
A22: Italy | B22: detached house | C22: 1961-1975 | D22: 1.76 | E22: 1.85 | F22: 1.3 | G22: 0.73 | H22: 5.7 | I22: 0.9 | J22: 3
A23: Italy | B23: detached house | C23: 1976-1990 | D23: 0.8 | E23: 1.01 | F23: 0.98 | G23: 0.72 | H23: 3.7 | I23: 0.1 | J23: 2.7
A24: Italy | B24: detached house | C24: 1991-2005 | D24: 0.61 | E24: 0.7 | F24: 0.77 | G24: 0.73 | H24: 3.7 | I24: 0.125 | J24: 3
A25: Italy | B25: detached house | C25: >2005 | D25: 0.34 | E25: 0.3 | F25: 0.33 | G25: 0.72 | H25: 2.4 | I25: 0.125 | J25: 3
A26: Lithuania | B26: apartment | C26: <1900 | D26: 1.6 | E26: 1.6 | F26: 1.6 | G26: 0.6 | H26: 5 | I26: 0.075 | J26: 3.8
A27: Lithuania | B27: apartment | C27: 1900-1920 | D27: 1.6 | E27: 1.6 | F27: 1.6 | G27: 0.7 | H27: 5 | I27: 0.08 | J27: 3.8
A28: Lithuania | B28: apartment | C28: 1920-1940 | D28: 1.6 | E28: 1.6 | F28: 1.6 | G28: 0.7 | H28: 4.9 | I28: 0.08 | J28: 3.5
A29: Lithuania | B29: apartment | C29: 1940-1960 | D29: 1.5 | E29: 1.5 | F29: 1.5 | G29: 0.6 | H29: 4.9 | I29: 0.09 | J29: 3.2
A30: Lithuania | B30: apartment | C30: 1960-1980 | D30: 1.4 | E30: 1.4 | F30: 1.4 | G30: 0.6 | H30: 4 | I30: 0.1 | J30: 3
A31: Lithuania | B31: apartment | C31: 1980-1990 | D31: 1.2 | E31: 1.2 | F31: 1.2 | G31: 0.5 | H31: 3.7 | I31: 0.1 | J31: 2.7
A32: Lithuania | B32: apartment | C32: 1991-2005 | D32: 0.6 | E32: 0.6 | F32: 0.6 | G32: 0.5 | H32: 3.7 | I32: 0.1 | J32: 3
A33: Lithuania | B33: apartment | C33: >2005 | D33: 0.6 | E33: 0.6 | F33: 0.6 | G33: 0.5 | H33: 2.7 | I33: 0.125 | J33: 3
A34: Lithuania | B34: multistorey | C34: <1900 | D34: 1.6 | E34: 1.6 | F34: 1.6 | G34: 0.8 | H34: 5 | I34: 0.075 | J34: 3.8
A35: Lithuania | B35: multistorey | C35: 1900-1920 | D35: 1.6 | E35: 1.6 | F35: 1.6 | G35: 0.7 | H35: 5 | I35: 0.08 | J35: 3.8
A36: Lithuania | B36: multistorey | C36: 1920-1940 | D36: 1.6 | E36: 1.6 | F36: 1.6 | G36: 0.7 | H36: 4.9 | I36: 0.08 | J36: 3.5
A37: Lithuania | B37: multistorey | C37: 1940-1950 | D37: 1.55 | E37: 1.55 | F37: 1.55 | G37: 0.6 | H37: 4.9 | I37: 0.09 | J37: 3.2
A38: Lithuania | B38: multistorey | C38: 1950-1960 | D38: 1.5 | E38: 1.5 | F38: 1.5 | G38: 0.6 | H38: 4 | I38: 0.1 | J38: 3
A39: Lithuania | B39: multistorey | C39: 1960-1980 | D39: 1.4 | E39: 1.4 | F39: 1.4 | G39: 0.5 | H39: 3.7 | I39: 0.1 | J39: 2.7
A40: Lithuania | B40: multistorey | C40: 1980-2000 | D40: 1.2 | E40: 1.2 | F40: 1.2 | G40: 0.5 | H40: 3.7 | I40: 0.1 | J40: 3
A41: Lithuania | B41: multistorey | C41: >2000 | D41: 0.6 | E41: 0.6 | F41: 0.6 | G41: 0.8 | H41: 2.7 | I41: 0.125 | J41: 3
A42: Lithuania | B42: detached house | C42: <1900 | D42: 1.5 | E42: 1.5 | F42: 1.5 | G42: 0.7 | H42: 5 | I42: 0.075 | J42: 3.6
A43: Lithuania | B43: detached house | C43: 1900-1920 | D43: 1.4 | E43: 1.4 | F43: 1.4 | G43: 0.7 | H43: 5 | I43: 0.08 | J43: 3.6
A44: Lithuania | B44: detached house | C44: 1920-1940 | D44: 1.4 | E44: 1.4 | F44: 1.4 | G44: 0.6 | H44: 4.9 | I44: 0.08 | J44: 3.3
A45: Lithuania | B45: detached house | C45: 1940-1960 | D45: 1.3 | E45: 1.3 | F45: 1.3 | G45: 0.6 | H45: 4 | I45: 0.09 | J45: 3
A46: Lithuania | B46: detached house | C46: 1960-1980 | D46: 1.2 | E46: 1.2 | F46: 1.2 | G46: 0.5 | H46: 3 | I46: 0.1 | J46: 3
A47: Lithuania | B47: detached house | C47: 1980-2000 | D47: 1 | E47: 1 | F47: 1 | G47: 0.5 | H47: 2.7 | I47: 0.1 | J47: 3
A48: Lithuania | B48: detached house | C48: >2000 | D48: 0.5 | E48: 0.5 | F48: 0.5 | G48: 0.8 | H48: 2.4 | I48: 0.1 | J48: 3
A49: Spain | B49: apartment | C49: <1900 | D49: 2.63 | E49: 3.08 | F49: 1.92 | G49: =1/2.4 -> 0.4166666667 | H49: 2.7 | I49: 0.095 | J49: 3.8
A50: Spain | B50: apartment | C50: 1901-1920 | D50: 2.63 | E50: 3.08 | F50: 1.68 | G50: =1/5.34 -> 0.1872659176 | H50: 5.7 | I50: 0.095 | J50: 3.8
A51: Spain | B51: apartment | C51: 1921-1945 | D51: 3.03 | E51: 1.67 | F51: 1.26 | G51: =1/2.67 -> 0.3745318352 | H51: 5.7 | I51: 0.1 | J51: 3.5
A52: Spain | B52: apartment | C52: 1946-1960 | D52: 3.03 | E52: 1.67 | F52: 1.26 | G52: =1/2.67 -> 0.3745318352 | H52: 5.7 | I52: 0.1 | J52: 3.2
A53: Spain | B53: apartment | C53: 1961-1975 | D53: =AVERAGE(1.33,2.08) -> 1.705 | E53: 1.92 | F53: 1.72 | G53: =1/4.87 -> 0.205338809 | H53: 5.7 | I53: 0.1 | J53: 3
A54: Spain | B54: apartment | C54: 1976-1990 | D54: =AVERAGE(1.33,2.08) -> 1.705 | E54: 1.92 | F54: 1.72 | G54: =1/6.17 -> 0.1620745543 | H54: 5.7 | I54: 0.125 | J54: 2.7
A55: Spain | B55: apartment | C55: 1991-2005 | D55: 0.58 | E55: 0.6 | F55: 2.2 | G55: =1/1.33 -> 0.7518796992 | H55: 3.37 | I55: 0.125 | J55: 3
A56: Spain | B56: apartment | C56: >2005 | D56: 0.48 | E56: 0.47 | F56: 0.91 | G56: =1/2.36 -> 0.4237288136 | H56: 3.29 | I56: 0.125 | J56: 3
A57: Spain | B57: Multistorey | C57: <1900 | D57: 2.63 | E57: 3.08 | F57: 1.92 | G57: =1/2.4 -> 0.4166666667 | H57: 2.4 | I57: 0.095 | J57: 3.8
A58: Spain | B58: Multistorey | C58: 1901-1920 | D58: 2.63 | E58: 3.08 | F58: 1.68 | G58: =1/5.34 -> 0.1872659176 | H58: 5.7 | I58: 0.095 | J58: 3.8
A59: Spain | B59: Multistorey | C59: 1921-1945 | D59: 3.03 | E59: 1.67 | F59: 1.26 | G59: =1/2.67 -> 0.3745318352 | H59: 5.7 | I59: 0.1 | J59: 3.5
A60: Spain | B60: Multistorey | C60: 1946-1960 | D60: 3.03 | E60: 1.67 | F60: 1.26 | G60: =1/2.67 -> 0.3745318352 | H60: 5.7 | I60: 0.1 | J60: 3.2
A61: Spain | B61: Multistorey | C61: 1961-1975 | D61: =AVERAGE(1.33,2.08) -> 1.705 | E61: 1.92 | F61: 1.72 | G61: =1/4.87 -> 0.205338809 | H61: 5.7 | I61: 0.1 | J61: 3
A62: Spain | B62: Multistorey | C62: 1976-1990 | D62: =AVERAGE(1.33,2.08) -> 1.705 | E62: 1.92 | F62: 1.72 | G62: =1/6.17 -> 0.1620745543 | H62: 5.7 | I62: 0.125 | J62: 2.7
A63: Spain | B63: Multistorey | C63: 1991-2005 | D63: 0.58 | E63: 0.6 | F63: 2.2 | G63: =1/1.33 -> 0.7518796992 | H63: 3.37 | I63: 0.125 | J63: 3
A64: Spain | B64: Multistorey | C64: >2005 | D64: 0.48 | E64: 0.47 | F64: 0.91 | G64: =1/2.36 -> 0.4237288136 | H64: 3.29 | I64: 0.125 | J64: 3
A65: Spain | B65: detached house | C65: <1900 | D65: 0.24 | E65: 5.56 | F65: 2.38 | G65: =1/1.38 -> 0.7246376812 | H65: 4.96 | I65: 0.095 | J65: 3.6
A66: Spain | B66: detached house | C66: 1901-1920 | D66: 2.56 | E66: 3.08 | F66: 0.85 | G66: =1/1.44 -> 0.6944444444 | H66: 4.3 | I66: 0.095 | J66: 3.6
A67: Spain | B67: detached house | C67: 1921-1945 | D67: 2.56 | E67: 3.08 | F67: 0.85 | G67: =1/1.44 -> 0.6944444444 | H67: 4.3 | I67: 0.1 | J67: 3.3
A68: Spain | B68: detached house | C68: 1946-1960 | D68: 2.56 | E68: 1.6 | F68: 1.83 | G68: =1/3.16 -> 0.3164556962 | H68: 4.59 | I68: 0.1 | J68: 3
A69: Spain | B69: detached house | C69: 1961-1975 | D69: 1.33 | E69: 1.37 | F69: 0.85 | G69: =1/0.99 -> 1.01010101 | H69: 4.59 | I69: 0.1 | J69: 3
A70: Spain | B70: detached house | C70: 1976-1990 | D70: 1.33 | E70: 1.37 | F70: 0.85 | G70: =1/0.99 -> 1.01010101 | H70: 4.59 | I70: 0.125 | J70: 3
A71: Spain | B71: detached house | C71: 1991-2005 | D71: 0.62 | E71: 0.52 | F71: 0.89 | G71: =1/1.13 -> 0.8849557522 | H71: 3.19 | I71: 0.125 | J71: 3
A72: Spain | B72: detached house | C72: >2005 | D72: 0.48 | E72: 0.47 | F72: 2.16 | G72: =1/1.83 -> 0.5464480874 | H72: 3.09 | I72: 0.125 | J72: 3
A73: Germany | B73: apartment | C73: <1859 | D73: 2 | E73: 2.6 | F73: 1.2 | G73: 0.529 | H73: 2.8 | I73: 0.095 | J73: 4
A74: Germany | B74: apartment | C74: 1860-1918 | D74: 2.2 | E74: 1.3 | F74: 1.2 | G74: 0.3 | H74: 2.7 | I74: 0.095 | J74: 4
A75: Germany | B75: apartment | C75: 1919-1948 | D75: 1.7 | E75: 1.4 | F75: 1 | G75: 0.636 | H75: 3 | I75: 0.1 | J75: 3.8
A76: Germany | B76: apartment | C76: 1949-1957 | D76: 1.2 | E76: 1.6 | F76: 2.2 | G76: 0.663 | H76: 3 | I76: 0.1 | J76: 3.8
A77: Germany | B77: apartment | C77: 1958-1968 | D77: 1.2 | E77: 0.6 | F77: 1.6 | G77: 0.432 | H77: 3 | I77: 0.1 | J77: 3.8
A78: Germany | B78: apartment | C78: 1969-1978 | D78: 1 | E78: 0.6 | F78: 1 | G78: 0.594 | H78: 3 | I78: 0.1 | J78: 3.8
A79: Germany | B79: apartment | C79: 1979-1983 | D79: 0.8 | E79: 0.5 | F79: 0.8 | G79: 0.512 | H79: 3 | I79: 0.1 | J79: 3.8
A80: Germany | B80: apartment | C80: 1984-1994 | D80: 0.6 | E80: 0.4 | F80: 0.6 | G80: 0.595 | H80: 3 | I80: 0.125 | J80: 3.5
A81: Germany | B81: apartment | C81: 1995-2001 | D81: 0.4 | E81: 0.35 | F81: 0.45 | G81: 0.481 | H81: 2 | I81: 0.125 | J81: 3.2
A82: Germany | B82: apartment | C82: 2002-2009 | D82: 0.25 | E82: 0.2 | F82: 0.35 | G82: 0.417 | H82: 2 | I82: 0.125 | J82: 3
A83: Germany | B83: apartment | C83: 2009-2015 | D83: 0.28 | E83: 0.2 | F83: 0.35 | G83: 0.396 | H83: 1.8 | I83: 0.125 | J83: 3
A84: Germany | B84: apartment | C84: >2016 | D84: 0.29 | E84: 0.25 | F84: 0.29 | G84: 0.396 | H84: 1.3 | I84: 0.125 | J84: 3
A85: Germany | B85: multistorey | C85: <1859 | D85: 2 | E85: 2.6 | F85: 1.2 | G85: 0.529 | H85: 2.8 | I85: 0.095 | J85: 4
A86: Germany | B86: multistorey | C86: 1860-1918 | D86: 2.2 | E86: 1.3 | F86: 1.2 | G86: 0.3 | H86: 2.7 | I86: 0.095 | J86: 4
A87: Germany | B87: multistorey | C87: 1919-1948 | D87: 1.7 | E87: 1.4 | F87: 1 | G87: 0.636 | H87: 3 | I87: 0.1 | J87: 3.8
A88: Germany | B88: multistorey | C88: 1949-1957 | D88: 1.2 | E88: 1.6 | F88: 2.2 | G88: 0.663 | H88: 3 | I88: 0.1 | J88: 3.8
A89: Germany | B89: multistorey | C89: 1958-1968 | D89: 1.2 | E89: 0.6 | F89: 1.6 | G89: 0.432 | H89: 3 | I89: 0.1 | J89: 3.8
A90: Germany | B90: multistorey | C90: 1969-1978 | D90: 1 | E90: 0.6 | F90: 1 | G90: 0.594 | H90: 3 | I90: 0.1 | J90: 3.8
A91: Germany | B91: multistorey | C91: 1979-1983 | D91: 0.8 | E91: 0.5 | F91: 0.8 | G91: 0.512 | H91: 3 | I91: 0.1 | J91: 3.8
A92: Germany | B92: multistorey | C92: 1984-1994 | D92: 0.6 | E92: 0.4 | F92: 0.6 | G92: 0.595 | H92: 3 | I92: 0.125 | J92: 3.5
A93: Germany | B93: multistorey | C93: 1995-2001 | D93: 0.4 | E93: 0.35 | F93: 0.45 | G93: 0.481 | H93: 2 | I93: 0.125 | J93: 3.2
A94: Germany | B94: multistorey | C94: 2002-2009 | D94: 0.25 | E94: 0.2 | F94: 0.35 | G94: 0.417 | H94: 2 | I94: 0.125 | J94: 3
A95: Germany | B95: multistorey | C95: 2009-2015 | D95: 0.28 | E95: 0.2 | F95: 0.35 | G95: 0.396 | H95: 1.8 | I95: 0.125 | J95: 3
A96: Germany | B96: multistorey | C96: >2016 | D96: 0.29 | E96: 0.25 | F96: 0.29 | G96: 0.396 | H96: 1.3 | I96: 0.125 | J96: 3
A97: Germany | B97: detached house | C97: <1859 | D97: 2 | E97: 2.6 | F97: 2.8 | G97: 0.547 | H97: 2.9 | I97: 0.095 | J97: 3.2
A98: Germany | B98: detached house | C98: 1860-1918 | D98: 1.7 | E98: 1.3 | F98: 1.2 | G98: 0.638 | H98: 2.8 | I98: 0.095 | J98: 3.2
A99: Germany | B99: detached house | C99: 1919-1948 | D99: 1.7 | E99: 1.4 | F99: 1 | G99: 0.616 | H99: 2.8 | I99: 0.1 | J99: 3.1
A100: Germany | B100: detached house | C100: 1949-1957 | D100: 1.4 | E100: 1.4 | F100: 1 | G100: 0.904 | H100: 2.8 | I100: 0.1 | J100: 3.1
A101: Germany | B101: detached house | C101: 1958-1968 | D101: 1.2 | E101: 0.8 | F101: 1.6 | G101: 0.922 | H101: 2.8 | I101: 0.1 | J101: 3.1
A102: Germany | B102: detached house | C102: 1969-1978 | D102: 1 | E102: 0.5 | F102: 1 | G102: 0.906 | H102: 2.8 | I102: 0.1 | J102: 3.2
A103: Germany | B103: detached house | C103: 1979-1983 | D103: 0.8 | E103: 0.5 | F103: 0.8 | G103: 0.576 | H103: 4.3 | I103: 0.1 | J103: 3.2
A104: Germany | B104: detached house | C104: 1984-1994 | D104: 0.5 | E104: 0.4 | F104: 0.6 | G104: 0.859 | H104: 3.2 | I104: 0.125 | J104: 3.2
A105: Germany | B105: detached house | C105: 1995-2001 | D105: 0.3 | E105: 0.35 | F105: 0.45 | G105: 0.845 | H105: 1.9 | I105: 0.125 | J105: 3
A106: Germany | B106: detached house | C106: 2002-2009 | D106: 0.3 | E106: 0.25 | F106: 0.35 | G106: 0.804 | H106: 1.4 | I106: 0.125 | J106: 3
A107: Germany | B107: detached house | C107: 2009-2015 | D107: 0.28 | E107: 0.2 | F107: 0.35 | G107: 0.619 | H107: 1.3 | I107: 0.125 | J107: 3
A108: Germany | B108: detached house | C108: >2016 | D108: 0.17 | E108: 0.15 | F108: 0.17 | G108: 0.619 | H108: 1.1 | I108: 0.125 | J108: 3

Sheet Envelope & Windows
A1: EXTERNAL INSULATION | B1: thermal conductivity | C1: thickness | D1: material cost €/m2 | E1: installation cost € /m2
A2: wall insulation | B2: 0.03 | C2: 0.1 | D2: =+D11 -> 9.45 | E2: 46
A3: Roof insulation | B3: 0.03 | C3: 0.1 | D3: =+D12 -> 9 | E3: 20
A4: Floor insulation | B4: 0.03 | C4: 0.1 | D4: =+D13 -> 27 | E4: 70
A6: single grazed cost, €/m2 (all inclusive) | D6: =+D14 -> 270
A7: double glazed cost, €/m2 (all inclusive) | D7: =+D15 -> 360
B10: Cost (€/m2) | C10: Incentive | D10: Subsidized Cost (€/m2)
A11: wall insulation | B11: 10.5 | C11: 0.1 | D11: =+B11*(1-C11) -> 9.45
A12: Roof insulation | B12: 10 | C12: 0.1 | D12: =+B12*(1-C12) -> 9
A13: Floor insulation | B13: 30 | C13: 0.1 | D13: 27
A14: Single Glazed Win | B14: 300 | C14: 0.1 | D14: 270
A15: Double Glazed Wind | B15: 400 | C15: 0.1 | D15: 360

Sheet Heating & DHW
A1: HEATING (plant type) | B1: efficiency | C1: cost €/kW | D1: installation cost €/kW | E1: HEATING (emitter type) | F1: efficiency | G1: cost €/kW | H1: installation cost €/kW | I1: regulation: mean efficiency | J1: distribution: mean efficiency
A2: 1-Type B open chamber | B2: =0.9-0.03-0.09-0.02 -> 0.76 | C2: =+D25 -> 18 | D2: 10 | E2: 1- Radiators | F2: 0.94 | G2: =+H24 -> 108 | H2: 5 | I2: 0.95 | J2: 0.94
A3: 2-Type C sealed chamber | B3: =0.93-0.03-0.04-0.01 -> 0.85 | C3: =+D26 -> 22.5 | D3: 10 | E3: 2- Radiators with Valve | F3: 0.95 | G3: =+H25 -> 180 | H3: 5
A4: 3- Gas/diesel modulating | B4: =0.9-0.02-0.01-0.02-0.01-0.01 -> 0.83 | C4: 31.5 | D4: 15 | E4: 3- Fan coil | F4: 0.95 | G4: =+H26 -> 54
A5: 4- Condensing | B5: =1.01-0.01-0.03-0.03 -> 0.94 | C5: 40.5 | D5: 15 | E5: 4- Floor panels | F5: 0.96 | G5: 450
A6: 5- Gas/diesel on-off | B6: =0.9-0.03 -> 0.87 | C6: 27 | D6: 10 | E6: 5- Ceiling and wall panels | F6: 0.95 | G6: 360
A7: 6- Air cooled | B7: =B6 -> 0.87 | C7: 27 | D7: 10 | E7: 6- Other types | F7: 0.92 | G7: 8999999.1 | H7: 9999999
A11: pellet stove | B11: 0.88 | C11: =+D32 -> 72 | D11: 10
A12: heat pump | B12: 3.5 | C12: =+D33 -> 270 | D12: 50
A13: solar heating (€/m2) | C13: =+D34 -> 630 | D13: 200
A14: plant type (hot water)
A15: electric boiler (€/l) | B15: 0.9 | C15: =+D37 -> 4.5 | D15: 10
A16: 1- Open chamber centralized | B16: 0.76 | C16: =+D38 -> 18 | D16: 10
A17: 2- Sealed chamber autonomous | B17: 0.85 | C17: 22.5 | D17: 10
A20: heat pump (€/l) | B20: 3 | C20: =+D41 -> 9 | D20: 10
A21: solar heater (€/m2) | C21: =+D42 -> 630 | D21: 200
B23: Cost (€/kW) | C23: Incentive | D23: Subsidized Cost (€/kW) | F23: Cost (€/kW) | G23: Incentive | H23: Subsidized Cost (€/kW)
A24: Natural Gas Boiler | E24: 1- Radiators | F24: 120 | G24: 0.1 | H24: =+F24*(1-G24) -> 108
A25: 1-Type B open chamber | B25: 20 | C25: 0.1 | D25: =+B25*(1-C25) -> 18 | E25: 2- Radiators with Valve | F25: 200 | G25: 0.1 | H25: =+F25*(1-G25) -> 180
A26: 2-Type C sealed chamber | B26: 25 | C26: 0.1 | D26: =+B26*(1-C26) -> 22.5 | E26: 3- Fan coil | F26: 60 | G26: 0.1 | H26: 54
A27: 3- Gas/diesel modulating | B27: 35 | C27: 0.1 | D27: 31.5 | E27: 4- Floor panels | F27: 500 | G27: 0.1 | H27: 450
A28: 4- Condensing | B28: 45 | C28: 0.1 | D28: 40.5 | E28: 5- Ceiling and wall panels | F28: 400 | G28: 0.1 | H28: 360
A29: 5- Gas/diesel on-off | B29: 30 | C29: 0.1 | D29: 27 | E29: 6- Other types | F29: 9999999 | G29: 0.1 | H29: 8999999.1
A30: 6- Air cooled | B30: 30 | C30: 0.1 | D30: 27
A32: pellet stove | B32: 80 | C32: 0.1 | D32: 72
A33: heat pump | B33: 300 | C33: 0.1 | D33: 270
A34: solar heating (€/m2) | B34: 700 | C34: 0.1 | D34: 630
A36: Hot Water Generation
A37: Electric Boiler (€/l) | B37: 5 | C37: 0.1 | D37: =+B37*(1-C37) -> 4.5
A38: 1- Open chamber centralized | B38: 20 | C38: 0.1 | D38: 18
A39: 2- Sealed chamber autonomous | B39: 25 | C39: 0.1 | D39: 22.5
A41: heat pump (€/l) | B41: 10 | C41: 0.1 | D41: 9
A42: solar heater (€/m2) | B42: 700 | C42: 0.1 | D42: 630

Sheet Other Thermal Data
A1: alfa (plaster) | B1: 0.7
A2: sun factor (glass transmission coeff.) | B2: 0.65
A3: shadow | B3: 0.3
A4: Airchangecoeff [1/h] | B4: 0.33 | D4: UNI ts 11300-1 (from 0.3 up to 0.5)
A5: DHWload [kg/person /day] 1 person=25 m2 | B5: 30
A6: Tb-base temperature for HDD [°C] | B6: 20 | D6: It must agree with HDD in the sheet "city climate"

Sheet Variable Costs
A1: country | B1: source | C1: variation rate \ year | D1: 0 | E1: 1 | F1: 2 | G1: 3 | H1: 4 | I1: 5 | J1: 6 | K1: 7 | L1: 8 | M1: 9 | N1: 10 | O1: 11 | P1: 12 | Q1: 13 | R1: 14 | S1: 15 | T1: 16 | U1: 17 | V1: 18 | W1: 19 | X1: 20 | Y1: 21 | Z1: 22 | AA1: 23 | AB1: 24 | AC1: 25 | AD1: 26 | AE1: 27 | AF1: 28 | AG1: 29 | AH1: 30
A2: italy | B2: electric energy [€/kWh] | C2: 0.02 | D2: 0.15 | E2: =+D2*(1+$C2) -> 0.153 | F2: =+E2*(1+$C2) -> 0.15606 | G2: 0.1591812 | H2: 0.162364824 | I2: 0.1656121205 | J2: 0.1689243629 | K2: 0.1723028501 | L2: 0.1757489072 | M2: 0.1792638853 | N2: 0.182849163 | O2: 0.1865061463 | P2: 0.1902362692 | Q2: 0.1940409946 | R2: 0.1979218145 | S2: 0.2018802507 | T2: 0.2059178558 | U2: 0.2100362129 | V2: 0.2142369371 | W2: 0.2185216759 | X2: 0.2228921094 | Y2: 0.2273499516 | Z2: 0.2318969506 | AA2: 0.2365348896 | AB2: 0.2412655874 | AC2: 0.2460908992 | AD2: 0.2510127172 | AE2: 0.2560329715 | AF2: =+AE2*(1+$C2) -> 0.2611536309 | AG2: 0.2663767035 | AH2: 0.2717042376
B3: methane gas [€/Smc] | C3: 0.02 | D3: 0.7 | E3: =+D3*(1+$C3) -> 0.714 | F3: =+E3*(1+$C3) -> 0.72828 | G3: 0.7428456 | H3: 0.757702512 | I3: 0.7728565622 | J3: 0.7883136935 | K3: 0.8040799674 | L3: 0.8201615667 | M3: 0.836564798 | N3: 0.853296094 | O3: 0.8703620159 | P3: 0.8877692562 | Q3: 0.9055246413 | R3: 0.9236351341 | S3: 0.9421078368 | T3: 0.9609499936 | U3: 0.9801689934 | V3: 0.9997723733 | W3: 1.019767821 | X3: 1.040163177 | Y3: 1.060966441 | Z3: 1.08218577 | AA3: 1.103829485 | AB3: 1.125906075 | AC3: 1.148424196 | AD3: 1.17139268 | AE3: 1.194820534 | AF3: 1.218716944 | AG3: 1.243091283 | AH3: 1.267953109
B4: pellet [€/kg] | C4: 0.02 | D4: 0.3 | E4: =+D4*(1+$C4) -> 0.306 | F4: 0.31212 | G4: 0.3183624 | H4: 0.324729648 | I4: 0.331224241 | J4: 0.3378487258 | K4: 0.3446057003 | L4: 0.3514978143 | M4: 0.3585277706 | N4: 0.365698326 | O4: 0.3730122925 | P4: 0.3804725384 | Q4: 0.3880819891 | R4: 0.3958436289 | S4: 0.4037605015 | T4: 0.4118357115 | U4: 0.4200724258 | V4: 0.4284738743 | W4: 0.4370433518 | X4: 0.4457842188 | Y4: 0.4546999032 | Z4: 0.4637939012 | AA4: 0.4730697793 | AB4: 0.4825311748 | AC4: 0.4921817983 | AD4: 0.5020254343 | AE4: 0.512065943 | AF4: 0.5223072619 | AG4: 0.5327534071 | AH4: 0.5434084752
B5: discount rate | C5: 0.08
A6: Lithuania | B6: electric energy [€/kWh] | C6: 0.02 | D6: 0.15 | E6: =+D6*(1+$C6) -> 0.153 | F6: 0.15606 | G6: 0.1591812 | H6: 0.162364824 | I6: 0.1656121205 | J6: 0.1689243629 | K6: 0.1723028501 | L6: 0.1757489072 | M6: 0.1792638853 | N6: 0.182849163 | O6: 0.1865061463 | P6: 0.1902362692 | Q6: 0.1940409946 | R6: 0.1979218145 | S6: 0.2018802507 | T6: 0.2059178558 | U6: 0.2100362129 | V6: 0.2142369371 | W6: 0.2185216759 | X6: 0.2228921094 | Y6: 0.2273499516 | Z6: 0.2318969506 | AA6: 0.2365348896 | AB6: 0.2412655874 | AC6: 0.2460908992 | AD6: 0.2510127172 | AE6: 0.2560329715 | AF6: 0.2611536309 | AG6: 0.2663767035 | AH6: 0.2717042376
B7: methane gas [€/Smc] | C7: 0.02 | D7: 0.7 | E7: =+D7*(1+$C7) -> 0.714 | F7: 0.72828 | G7: 0.7428456 | H7: 0.757702512 | I7: 0.7728565622 | J7: 0.7883136935 | K7: 0.8040799674 | L7: 0.8201615667 | M7: 0.836564798 | N7: 0.853296094 | O7: 0.8703620159 | P7: 0.8877692562 | Q7: 0.9055246413 | R7: 0.9236351341 | S7: 0.9421078368 | T7: 0.9609499936 | U7: 0.9801689934 | V7: 0.9997723733 | W7: 1.019767821 | X7: 1.040163177 | Y7: 1.060966441 | Z7: 1.08218577 | AA7: 1.103829485 | AB7: 1.125906075 | AC7: 1.148424196 | AD7: 1.17139268 | AE7: 1.194820534 | AF7: 1.218716944 | AG7: 1.243091283 | AH7: 1.267953109
B8: pellet [€/kg] | C8: 0.02 | D8: 0.3 | E8: =+D8*(1+$C8) -> 0.306 | F8: 0.31212 | G8: 0.3183624 | H8: 0.324729648 | I8: 0.331224241 | J8: 0.3378487258 | K8: 0.3446057003 | L8: 0.3514978143 | M8: 0.3585277706 | N8: 0.365698326 | O8: 0.3730122925 | P8: 0.3804725384 | Q8: 0.3880819891 | R8: 0.3958436289 | S8: 0.4037605015 | T8: 0.4118357115 | U8: 0.4200724258 | V8: 0.4284738743 | W8: 0.4370433518 | X8: 0.4457842188 | Y8: 0.4546999032 | Z8: 0.4637939012 | AA8: 0.4730697793 | AB8: 0.4825311748 | AC8: 0.4921817983 | AD8: 0.5020254343 | AE8: 0.512065943 | AF8: 0.5223072619 | AG8: 0.5327534071 | AH8: 0.5434084752
B9: discount rate | C9: 0.09
A10: Spain | B10: electric energy [€/kWh] | C10: 0.02 | D10: 0.15 | E10: =+D10*(1+$C10) -> 0.153 | F10: 0.15606 | G10: 0.1591812 | H10: 0.162364824 | I10: 0.1656121205 | J10: 0.1689243629 | K10: 0.1723028501 | L10: 0.1757489072 | M10: 0.1792638853 | N10: 0.182849163 | O10: 0.1865061463 | P10: 0.1902362692 | Q10: 0.1940409946 | R10: 0.1979218145 | S10: 0.2018802507 | T10: 0.2059178558 | U10: 0.2100362129 | V10: 0.2142369371 | W10: 0.2185216759 | X10: 0.2228921094 | Y10: 0.2273499516 | Z10: 0.2318969506 | AA10: 0.2365348896 | AB10: 0.2412655874 | AC10: 0.2460908992 | AD10: 0.2510127172 | AE10: 0.2560329715 | AF10: 0.2611536309 | AG10: 0.2663767035 | AH10: 0.2717042376
B11: methane gas [€/Smc] | C11: 0.02 | D11: 0.7 | E11: =+D11*(1+$C11) -> 0.714 | F11: 0.72828 | G11: 0.7428456 | H11: 0.757702512 | I11: 0.7728565622 | J11: 0.7883136935 | K11: 0.8040799674 | L11: 0.8201615667 | M11: 0.836564798 | N11: 0.853296094 | O11: 0.8703620159 | P11: 0.8877692562 | Q11: 0.9055246413 | R11: 0.9236351341 | S11: 0.9421078368 | T11: 0.9609499936 | U11: 0.9801689934 | V11: 0.9997723733 | W11: 1.019767821 | X11: 1.040163177 | Y11: 1.060966441 | Z11: 1.08218577 | AA11: 1.103829485 | AB11: 1.125906075 | AC11: 1.148424196 | AD11: 1.17139268 | AE11: 1.194820534 | AF11: 1.218716944 | AG11: 1.243091283 | AH11: 1.267953109
B12: pellet [€/kg] | C12: 0.02 | D12: 0.3 | E12: =+D12*(1+$C12) -> 0.306 | F12: 0.31212 | G12: 0.3183624 | H12: 0.324729648 | I12: 0.331224241 | J12: 0.3378487258 | K12: 0.3446057003 | L12: 0.3514978143 | M12: 0.3585277706 | N12: 0.365698326 | O12: 0.3730122925 | P12: 0.3804725384 | Q12: 0.3880819891 | R12: 0.3958436289 | S12: 0.4037605015 | T12: 0.4118357115 | U12: 0.4200724258 | V12: 0.4284738743 | W12: 0.4370433518 | X12: 0.4457842188 | Y12: 0.4546999032 | Z12: 0.4637939012 | AA12: 0.4730697793 | AB12: 0.4825311748 | AC12: 0.4921817983 | AD12: 0.5020254343 | AE12: 0.512065943 | AF12: 0.5223072619 | AG12: 0.5327534071 | AH12: 0.5434084752
B13: discount rate | C13: 0.07
A14: Germany | B14: electric energy [€/kWh] | C14: 0.02 | D14: 0.2969 | E14: =+D14*(1+$C14) -> 0.302838 | F14: 0.30889476 | G14: =+F14*(1+$C14) -> 0.3150726552 | H14: 0.3213741083 | I14: 0.3278015905 | J14: 0.3343576223 | K14: 0.3410447747 | L14: 0.3478656702 | M14: 0.3548229836 | N14: 0.3619194433 | O14: 0.3691578322 | P14: 0.3765409888 | Q14: 0.3840718086 | R14: 0.3917532448 | S14: 0.3995883096 | T14: 0.4075800758 | U14: 0.4157316774 | V14: 0.4240463109 | W14: 0.4325272371 | X14: 0.4411777819 | Y14: 0.4500013375 | Z14: 0.4590013643 | AA14: 0.4681813915 | AB14: 0.4775450194 | AC14: 0.4870959198 | AD14: 0.4968378382 | AE14: 0.5067745949 | AF14: 0.5169100868 | AG14: 0.5272482885 | AH14: 0.5377932543
B15: methane gas [€/Smc] | C15: 0.02 | D15: 0.461 | E15: 0.47022 | F15: 0.4796244 | G15: =+F15*(1+$C15) -> 0.489216888 | H15: 0.4990012258 | I15: 0.5089812503 | J15: 0.5191608753 | K15: 0.5295440928 | L15: 0.5401349746 | M15: 0.5509376741 | N15: 0.5619564276 | O15: 0.5731955562 | P15: 0.5846594673 | Q15: 0.5963526566 | R15: 0.6082797098 | S15: 0.620445304 | T15: 0.63285421 | U15: 0.6455112942 | V15: 0.6584215201 | W15: 0.6715899505 | X15: 0.6850217495 | Y15: 0.6987221845 | Z15: 0.7126966282 | AA15: 0.7269505608 | AB15: 0.741489572 | AC15: 0.7563193634 | AD15: 0.7714457507 | AE15: 0.7868746657 | AF15: 0.802612159 | AG15: 0.8186644022 | AH15: 0.8350376903
B16: pellet [€/kg] | C16: 0.02 | D16: 0.25 | E16: 0.255 | F16: 0.2601 | G16: =+F16*(1+$C16) -> 0.265302 | H16: 0.27060804 | I16: 0.2760202008 | J16: 0.2815406048 | K16: 0.2871714169 | L16: 0.2929148453 | M16: 0.2987731422 | N16: 0.304748605 | O16: 0.3108435771 | P16: 0.3170604486 | Q16: 0.3234016576 | R16: 0.3298696908 | S16: 0.3364670846 | T16: 0.3431964263 | U16: 0.3500603548 | V16: 0.3570615619 | W16: 0.3642027931 | X16: 0.371486849 | Y16: 0.378916586 | Z16: 0.3864949177 | AA16: 0.394224816 | AB16: 0.4021093124 | AC16: 0.4101514986 | AD16: 0.4183545286 | AE16: 0.4267216192 | AF16: 0.4352560515 | AG16: 0.4439611726 | AH16: 0.452840396
B17: discount rate | C17: 0.05

Sheet Default Uncertainty
A1: simplified manager | B1: check | C1: confidence | G1: advanced manager | I1: check | J1: confidence | N1: check | O1: confidence
A3: geometry | B3: 1 | C3: 10 | D3: % | G3: Geometry | H3: Sfloor | I3: 1 | J3: 10 | K3: % | L3: Heating | M3: eta_burner | N3: 1 | O3: 5 | P3: %
A4: thermal properties | B4: 0 | C4: 10 | D4: % | H4: Sdisp /V | I4: 0 | J4: 10 | K4: % | M4: eta_pellet | N4: 0 | O4: 5 | P4: %
A5: efficiencies | B5: 1 | C5: 5 | D5: % | H5: h | I5: 1 | J5: 5 | K5: % | M5: COP_hp | N5: 0 | O5: 15 | P5: %
A6: hot water load | B6: 0 | C6: 10 | D6: % | H6: Swins /Sfloor | I6: 0 | J6: 5 | K6: % | M6: eta_regulation | N6: 0 | O6: 5 | P6: %
A7: environment | B7: 1 | C7: 20 | D7: % | M7: eta_distribution | N7: 0 | O7: 5 | P7: %
A8: equipment costs | B8: 0 | C8: 10 | D8: % | G8: Thermal properties | H8: Uwall | I8: 1 | J8: 20 | K8: % | M8: eta_emitter | N8: 0 | O8: 5 | P8: %
A9: energy cost | B9: 0 | C9: 1 | D9: 10 | E9: % | H9: Uroof | I9: 0 | J9: 20 | K9: % | M9: Solar fraction | N9: 0 | O9: 10 | P9: %
C10: today | D10: final year | H10: Ufloor | I10: 0 | J10: 20 | K10: %
H11: Uwins. | I11: 0 | J11: 20 | K11: % | L11: DHW system | M11: eta_electricBoiler | N11: 0 | O11: 5 | P11: %
H12: SunFactor | I12: 0 | J12: 10 | K12: % | M12: eta_burner (DHW) | N12: 1 | O12: 5 | P12: %
A13: noise shape | D13: res. Confidence | H13: AlfaPlaster | I13: 0 | J13: 15 | K13: % | M13: COP_hp(DHW) | N13: 0 | O13: 15 | P13: %
A14: 1 | D14: 95 | E14: % | M14: Hot Water load | N14: 0 | O14: 5 | P14: %
G15: External Insulation | H15: conductivity (wall) | I15: 0 | J15: 5 | K15: % | M15: Solar fraction (DHW) | N15: 0 | O15: 10 | P15: %
H16: thickness (wall) | I16: 0 | J16: 5 | K16: %
H17: conductivity (roof) | I17: 0 | J17: 5 | K17: % | L17: External Env | M17: HDD | N17: 0 | O17: 20 | P17: %
H18: thickness (roof) | I18: 0 | J18: 5 | K18: % | M18: Radiation | N18: 0 | O18: 10 | P18: %
H19: conductivity (floor) | I19: 0 | J19: 5 | K19: % | M19: Heating days | N19: 0 | O19: 5 | P19: %
H20: thickness (floor) | I20: 0 | J20: 5 | K20: % | M20: he convective coeff | N20: 0 | O20: 10 | P20: %
M21: Air change | N21: 0 | O21: 20 | P21: %
M22: Shadow | N22: 0 | O22: 20 | P22: %
L24: Costs | M24: Fixed Costs | N24: 0 | O24: 10 | P24: %
M25: Discount Rate | N25: 0 | O25: 10 | P25: %
M26: Fuel energy | N26: 0 | O26: 1 | P26: 20 | Q26: %
M27: Electric energy | N27: 0 | O27: 1 | P27: 20 | Q27: %
M28: Pellet energy | N28: 0 | O28: 1 | P28: 20 | Q28: %
O29: today | P29: final year

Sheet uncertain variables
B2: Geometric | D2: Thermophysical | F2: Heating equipment | H2: External environment | J2: Economic
M3: s - means stochastic variable: its value randomly changes over time. d - means a double extraction is needed: one for the old dwelling configuration and one for the renovated g- mean global at City or Country level that is , for the same run gC variable noise does not change from record to record if belonging to the same city
B4: Floor area | D4: Wall transmittance | F4: Burner efficiency | G4: d | H4: HDD | I4: s, gC | J4: Fixed costs
B5: Dispersing area to volume ratio | D5: Roof transmittance | F5: Pellet burner eff. | G5: d | H5: Radiation | I5: s, gC | J5: Electric energy cost | K5: s, gC
B6: Floor to floor height | D6: Floor transmittance | F6: Heat Pump COP | G6: d | H6: Heating days | I6: s, gC | J6: Fuel energy cost | K6: s, gC
B7: Windows to floor area ratio | C7: d | D7: Wins. transmittance | E7: d | F7: Regulation efficiency | G7: d | H7: Ext. convection coefficient | I7: s | J7: Pellet energy cost | K7: s, gC
D8: Plaster absorption coeff. | E8: d | F8: Regulation efficiency | G8: d | H8: Air change rate | I8: s | J8: Discount rate | K8: s, gC
D9: Sun factor | E9: d | F9: Emitter efficiency | G9: d | H9: Shadow coefficient
D10: Insul. thickness (wall) | E10: d | F10: Solar fraction | G10: d
D11: Insul. conductivity (wall) | E11: d | F11: Burner efficiency (DHW) | G11: d
D12: Insul. thickness (roof) | E12: d | F12: Heat Pump COP (DHW) | G12: d
D13: Insul. conductivity (roof) | E13: d | F13: Electric boiler efficiency (DHW) | G13: d
D14: Insul. thickness (floor) | E14: d | F14: Heat Pump COP (DHW) | G14: d
D15: Insul. conductivity (floor) | E15: d | F15: Hot water load | G15: d
F16: Solar fraction (DHW) | G16: d
